Cogmind - Beta 15 @@@ ROGUE MODE // 2025.05.11 @ 20:16:10 Player: Phosphophyllite Result: Destroyed by SJ-DYB(j) with Overtuned Pulse Rifle Performance ------------- Evolutions (0) 0 Regions Visited (4) 800 Robots Destroyed (24) 120 Value Destroyed (543) 543 Prototype IDs (0) 0 Alien Tech Used (0) 0 Bonus (800) 800 TOTAL SCORE: 2263 Bonus ------- Registered with UFD 300 Met Optimus in HQ 500 Cogmind --------- Core Integrity 0/250 Matter 278/300 Energy 265/265 System Corruption 1% Temperature Cool (12) Movement Treading (160) Location -9/Scraptown Parts ------- > --- POWER (1) -------- Improved Ion Engine > --- PROPULSION (2) --- Light Treads Improved Treads > --- UTILITY (2) ------ Large Storage Unit Improved Signal Interpreter > --- WEAPON (2) ------- Gauss Cannon Improved Grenade Launcher > --- INVENTORY (15) --- Improved Ion Engine Improved Titanium Leg Scrap Suit Force Field Particle Gun Subdweller Laser Particle Cannon Battle Cannon Scythe Makeshift Spear DRS Beacon (Ready) Peak State ------------ > --- POWER ------------ Improved Ion Engine > --- PROPULSION ------- Improved Treads Improved Titanium Leg > --- UTILITY ---------- Large Storage Unit Improved Signal Interpreter > --- WEAPON ----------- Particle Gun Gauss Cannon > --- INVENTORY -------- Ion Engine Light Treads Aluminum Leg Improved Light Armor Plating Force Field Subdweller Laser Bolt Gun Battle Cannon Assault Cannon Improved Grenade Launcher Mining Laser Scythe Makeshift Spear [Rating: 21] Favorites ----------- Power Ion Engine Engine Ion Engine Power Core Light Nuclear Core Propulsion Aluminum Leg Treads Light Treads Leg Aluminum Leg Utility Large Storage Unit Device Seismic Detector Storage Large Storage Unit Processor Improved Signal Interpreter Protection Improved Light Armor Plating Weapon Particle Gun Energy Gun Particle Gun Ballistic Gun Assault Rifle Ballistic Cannon Gauss Cannon Launcher Rocket Launcher Build | -11 -10 -10 -10 -9 ------- Run | Yrd Mat Min Sub Scr Slots Evolved . | . . . . . Power . | . . . . . Propulsion . | . . . . . Utility . | . . . . . Weapon . | . . . . . Parts Attached 32 | 7 4 9 4 8 Power 5 | 1 2 1 . 1 Engine 4 | 1 1 1 . 1 Core 1 | . 1 . . . Reactor . | . . . . . Propulsion 10 | 2 2 3 . 3 Treads 4 | 2 . . . 2 Leg 6 | . 2 3 . 1 Wheel . | . . . . . Hover . | . . . . . Flight . | . . . . . Utility 7 | 2 . 1 2 2 Device 1 | 1 . . . . Storage 2 | 1 . . . 1 Processor 3 | . . 1 1 1 Hackware . | . . . . . Protection 1 | . . . 1 . Artifact . | . . . . . Weapon 10 | 2 . 4 2 2 Energy Gun 5 | . . 3 2 . Energy Cannon . | . . . . . Ballistic Gun 2 | 2 . . . . Ballistic Cannon 1 | . . . . 1 Launcher 2 | . . 1 . 1 Special Weapon . | . . . . . Impact Weapon . | . . . . . Slashing Weapon . | . . . . . Piercing Weapon . | . . . . . Special Melee Weapon . | . . . . . Unidentified Prototypes . | . . . . . Parts Lost 2 | . 1 1 . . Power . | . . . . . Propulsion . | . . . . . Utility 1 | . 1 . . . Weapon 1 | . . 1 . . Highest Loss Streak 1 | . 1 1 . . To Critical Strikes . | . . . . . Average Backups 8 | 3 5 7 6 10 Power . | . 2 1 . . Propulsion 1 | 1 1 1 1 . Utility 1 | . 1 1 1 1 Weapon 4 | . 1 2 3 6 Tool/Special . | . . . . . Unused Backups 17 | . . 1 4 12 Power 1 | . . . . 1 Propulsion 1 | . . . 1 . Utility 5 | . . 1 1 3 Weapon 10 | . . . 2 8 Tool/Special . | . . . . . Average Slot Usage (%) 97 | . 96 96 100 97 Engine 10 | . 11 2 14 14 Core 3 | . 2 11 . . Treads 7 | . 22 . . 10 Leg 20 | . 5 28 28 17 Storage 12 | . 14 14 8 11 Processor 12 | . . 10 14 14 Protection 1 | . . . 5 2 Energy Gun 17 | . . 16 28 18 Ballistic Gun 4 | . 28 9 . . Ballistic Cannon 4 | . . . . 7 Peak Build Rating 21 | 7 8 11 14 21 Average Rating 13 | 5 7 9 11 17 On Entrance 7 | . 7 8 10 14 Naked Turns . | . . . . . Heaviest Build 40 | 12 14 16 17 40 Greatest Support 43 | 40 40 20 20 43 Greatest Overweight (x) 1 | . . . . 1 Average Overweight (x) . | . . . . . Largest Inventory Capacity 15 | 8 8 8 8 15 Average Capacity 11 | 7 8 8 6 13 Most Carried 15 | 5 8 8 8 15 Average Carried 9 | 3 5 7 6 10 Final Capacity 15 | 8 8 8 5 15 Final Carried 12 | 5 7 8 5 12 Class Distribution -------------------- 93% | Mutant 6% | Scavenger-Mutant Dominant Class ---------------- Mutant | -10/Materials Mutant | -10/Mines Mutant | -10/Subcaves Mutant | -9/Scraptown Resources | -11 -10 -10 -10 -9 ----------- Run | Yrd Mat Min Sub Scr Matter Collected 827 | 322 98 277 30 100 Remotely . | . . . . . Salvage Created 645 | 141 174 302 28 . Parts 40 | 5 8 26 1 . Haulers Intercepted . | . . . . . Recyclers Shooed . | . . . . . Parts Field Recycled . | . . . . . Retrieved Matter . | . . . . . Parts Self-Destructed 7 | . . . . 7 Prevented . | . . . . . Kills | -11 -10 -10 -10 -9 ------- Run | Yrd Mat Min Sub Scr Combat Hostiles Destroyed 21 | . 4 16 1 . Guns 11 | . 4 6 1 . AOE 10 | . . 10 . . Classes Destroyed 6 | 2 1 2 1 . Tunneler 2 | 2 . . . . Recycler 1 | 1 . . . . Swarmer 12 | . . 12 . . Grunt 6 | . 4 2 . . Sentry 2 | . . 2 . . Subdweller 1 | . . . 1 . Best Kill Streak 3 | 2 2 3 1 . Combat Bots Only 3 | . 2 3 1 . Max Kills in Single Turn 3 | 1 1 3 1 . Gunslinging . | . . . . . Exploded 3 | . . 3 . . Melee . | . . . . . Uniques/NPCs Destroyed . | . . . . . Combat | -11 -10 -10 -10 -9 -------- Run | Yrd Mat Min Sub Scr Hostile Shots Fired 129 | . 47 57 9 16 Missed 31 | . 9 14 3 5 Hits 98 | . 38 43 6 11 Projectile 98 | . 38 43 6 11 Critical Strikes 7 | . 6 1 . . Part Disruptions 1 | . . . . 1 Damage Taken 1365 | . 530 506 158 171 Core 261 | . 73 103 26 59 Absorbed by Shields . | . . . . . Regen/Repaired (Parts) 183 | . . . . 183 Core Remaining (%) 100 | 100 . . . . Volleys Fired 71 | 13 26 24 6 2 Largest 2 | 2 2 2 2 2 Hottest 121 | 40 40 105 121 105 Shots Fired 135 | 26 52 42 12 3 Gun 126 | 26 52 35 12 1 Cannon 2 | . . . . 2 Launcher 7 | . . 7 . . Special . | . . . . . Kinetic 88 | 26 52 8 . 2 Thermal 22 | . . 9 12 1 Explosive 7 | . . 7 . . Electromagnetic 18 | . . 18 . . Robot Hit Streak 14 | 4 14 7 6 . Robot Miss Streak 5 | 3 3 5 1 3 Penetration Max . | . . . . . Secondary Targets 1 | . 1 . . . Max Gunslinging Chain 1 | . 1 . . . Shots Hit Robots 87 | 14 41 22 10 . Core Hits 38 | 6 10 20 2 . Critical Kills . | . . . . . Critical Parts Destroyed . | . . . . . Critical Strikes . | . . . . . Melee Attacks . | . . . . . Impact . | . . . . . Slashing . | . . . . . Piercing . | . . . . . Sneak Attacks . | . . . . . Combat Hostiles . | . . . . . Follow-up Attacks . | . . . . . Damage Inflicted 1555 | 153 438 814 150 . Guns 990 | 153 438 249 150 . Cannons . | . . . . . Explosions 565 | . . 565 . . Melee . | . . . . . Ramming . | . . . . . Kinetic 643 | 153 438 52 . . Thermal 248 | . . 98 150 . Explosive 565 | . . 565 . . Electromagnetic 99 | . . 99 . . Impact . | . . . . . Slashing . | . . . . . Piercing . | . . . . . Highest Corruption 1 | . . . . 1 Average Corruption 1 | . . . . 1 Corruption Purged . | . . . . . Corruption Blocked . | . . . . . Overload Shots . | . . . . . Overflow Damage . | . . . . . Projectiles . | . . . . . Explosions . | . . . . . Melee . | . . . . . Knockbacks . | . . . . . Impact . | . . . . . Kinetic . | . . . . . Secondary . | . . . . . Self-Inflicted Damage . | . . . . . Shots . | . . . . . Rammed . | . . . . . Targets Rammed . | . . . . . Kicked . | . . . . . Crushed . | . . . . . Highest Temperature 282 | . 46 282 27 48 Average Temperature 49 | . 20 73 14 20 Received Heat Transfer 663 | . 411 174 54 24 Siege Activations . | . . . . . Martial Activations . | . . . . . Shielding Activations . | . . . . . Robots Disrupted . | . . . . . Combat Hostiles . | . . . . . Robots Corrupted . | . . . . . Combat Hostiles . | . . . . . Parts Fried . | . . . . . Impact Corruptions . | . . . . . Robots Melted . | . . . . . Combat Hostiles . | . . . . . Parts Melted 2 | . . . 2 . Heat Transferred 592 | . . 222 370 . Parts Sabotaged . | . . . . . Parts Stolen . | . . . . . Parts Stripped . | . . . . . Power Chain Reactions . | . . . . . Alert | -11 -10 -10 -10 -9 ------- Run | Yrd Mat Min Sub Scr Maximum Alert Level 1 | . . 1 . . Low Security (%) 87 | 100 100 83 . . Level 1 12 | . . 16 . . Level 2 . | . . . . . Level 3 . | . . . . . Level 4 . | . . . . . Level 5 . | . . . . . High Security . | . . . . . Max Security . | . . . . . Peak Influence 287 | 10 60 287 . . Initial 7 | . . 7 . . Average 72 | 1 17 91 . . Influence Increases 585 | 15 100 470 . . Destroy 0b10 Robot/C 400 | . 80 320 . . Destroy 0b10 Robot/NC 15 | 15 . . . . Destroy Leader 70 | . 20 50 . . Disable Machine 45 | . . 45 . . Destroy Structure 55 | . . 55 . . Influence Decreases 585 | 15 80 486 4 . Entered New Map 16 | . . 13 3 . Time Decay 549 | 15 70 463 1 . Lost Part 20 | . 10 10 . . Squads Dispatched 2 | . 1 1 . . Investigation 1 | . . 1 . . Extermination . | . . . . . Reinforcement 1 | . 1 . . . Assault . | . . . . . Garrison . | . . . . . Intercept . | . . . . . Searches Triggered . | . . . . . Construction Impeded . | . . . . . Haulers Reinforced . | . . . . . Active Scanning Responses . | . . . . . Cargo Convoy Interrupts . | . . . . . Stealth | -11 -10 -10 -10 -9 --------- Run | Yrd Mat Min Sub Scr Distress Signals 1 | . 1 . . . Communications Jammed . | . . . . . Distress Signals . | . . . . . Times Spotted 36 | . 9 17 1 9 Peak Tracking Total 6 | . 3 3 1 6 Tactical Retreats . | . . . . . Traps | -11 -10 -10 -10 -9 ------- Run | Yrd Mat Min Sub Scr Traps Triggered . | . . . . . Indirectly . | . . . . . Trap Hack Attempts . | . . . . . Triggered . | . . . . . Disarmed . | . . . . . Reprogrammed . | . . . . . Reused . | . . . . . Traps Extracted . | . . . . . Installed . | . . . . . Triggered . | . . . . . Machines | -11 -10 -10 -10 -9 ---------- Run | Yrd Mat Min Sub Scr Machines Disabled 3 | . . 3 . . Max in Single Turn 2 | . . 2 . . Machines Repaired . | . . . . . Machines Dismantled . | . . . . . Machines Sabotaged . | . . . . . Overloaded Fab Kills . | . . . . . Hacking | -11 -10 -10 -10 -9 --------- Run | Yrd Mat Min Sub Scr Machines Accessed 11 | . 2 1 . 8 Terminals 2 | . 2 . . . Fabricators . | . . . . . Repair Stations . | . . . . . Recycling Units . | . . . . . Scanalyzers . | . . . . . Garrison Access . | . . . . . Total Hacks 60 | . 4 1 . 55 Successful 57 | . 1 1 . 55 Failed 3 | . 3 . . . Catastrophic . | . . . . . Database Lockouts . | . . . . . Manual 4 | . 4 . . . Terminals 4 | . 4 . . . Fabricators . | . . . . . Repair Stations . | . . . . . Recycling Units . | . . . . . Scanalyzers . | . . . . . Garrison Access . | . . . . . Terminal Hacks 57 | . 1 1 . 55 Record 55 | . . . . 55 Open Door 1 | . . 1 . . Branch Access Points 1 | . 1 . . . Fabricator Hacks . | . . . . . Repair Station Hacks . | . . . . . Recycling Unit Hacks . | . . . . . Scanalyzer . | . . . . . Garrison Access Hacks . | . . . . . Unauthorized Hacks . | . . . . . Terminals . | . . . . . Fabricators . | . . . . . Repair Stations . | . . . . . Recycling Units . | . . . . . Scanalyzers . | . . . . . Garrison Access . | . . . . . Data Cores Recovered . | . . . . . Used . | . . . . . Hacking Detections 2 | . 2 . . . Full Trace Events . | . . . . . Feedback Events . | . . . . . Feedback Blocked . | . . . . . Robot Schematics Acquired . | . . . . . Robots Built . | . . . . . Authchips . | . . . . . Time . | . . . . . Total Robot Build Rating . | . . . . . Part Schematics Acquired . | . . . . . Parts Built . | . . . . . Authchips . | . . . . . Time . | . . . . . Total Part Build Rating . | . . . . . Parts Repaired . | . . . . . Time . | . . . . . Parts Recycled . | . . . . . Recycled Matter . | . . . . . Retrieved Matter . | . . . . . Retrieved Components . | . . . . . Parts Scanalyzed . | . . . . . Part Schematics Acquired . | . . . . . Parts Damaged . | . . . . . Bothacking | -11 -10 -10 -10 -9 ------------ Run | Yrd Mat Min Sub Scr Used RIF Installer . | . . . . . Robots Hacked . | . . . . . Non-combat . | . . . . . Combat . | . . . . . Robot Hacks Applied . | . . . . . Relay Couplers Released . | . . . . . Fabnet Peak Effective % . | . . . . . Robots Rewired . | . . . . . Allies Hacked . | . . . . . Hacks Repelled . | . . . . . Allies | -11 -10 -10 -10 -9 -------- Run | Yrd Mat Min Sub Scr Total Allies . | . . . . . Largest Group . | . . . . . Highest-Rated Group . | . . . . . Highest-Rated Ally . | . . . . . Total Orders . | . . . . . Ally Attacks . | . . . . . Total Damage . | . . . . . Kills . | . . . . . Allies Corrupted . | . . . . . Allies Melted 2 | . . . . 2 Intel | -11 -10 -10 -10 -9 ------- Run | Yrd Mat Min Sub Scr Active Infowar (turns) 295 | 47 248 . . . Seismic 295 | 47 248 . . . Robot Analysis Total . | . . . . . Derelict Logs Recovered 3 | . . 2 . 1 Drone Launches . | . . . . . Drone Recoveries . | . . . . . Exploration | -11 -10 -10 -10 -9 ------------- Run | Yrd Mat Min Sub Scr Turns Passed 5542 | 160 322 1504 194 3362 Spaces Moved 3622 | 69 148 1111 132 2162 Core 2 | 2 . . . . Treads 928 | 67 103 . . 758 Legs 2692 | . 45 1111 132 1404 Wheels . | . . . . . Hover . | . . . . . Flight . | . . . . . Fastest Speed 50 | 50 120 120 120 120 Average Speed 140 | 156 147 120 120 151 Slowest Speed 240 | 160 160 120 120 240 Overloaded Moves . | . . . . . Propulsion Burnouts . | . . . . . Robots Hopped . | . . . . . Potential Cave-ins . | . . . . . Cave-ins Triggered . | . . . . . Exploration Rate (%) 47 | 5 28 100 8 94 Regions Visited 4 Branch Regions 3 Pre-discovered Areas 3 | . . . . 3 Known Exits Taken 2 | . 1 1 . . Unknown Exits Taken 2 | 1 . . 1 . Scrap Searched 9 | . . 1 3 5 Spaces Dug . | . . . . . Terrain Destroyed 62 | . . 60 . 2 Melee . | . . . . . Projectile 2 | . . . . 2 AOE 60 | . . 60 . . Terrain Rammed . | . . . . . Walls Destroyed . | . . . . . Machines Disabled . | . . . . . Actions | -11 -10 -10 -10 -9 --------- Run | Yrd Mat Min Sub Scr Total 3935 | 95 204 1238 157 2241 Wait 145 | . 22 76 3 44 Move 3618 | 68 147 1110 131 2162 Hop . | . . . . . Pick Up 36 | 7 3 6 5 15 Fast Attach 7 | 5 . 2 . . Attach 5 | 2 2 . . 1 Detach . | . . . . . Swap 27 | . 2 12 5 8 Drop 26 | . 2 8 7 9 Fire 71 | 13 26 24 6 2 Melee . | . . . . . Ram . | . . . . . Kick . | . . . . . Crush . | . . . . . Escape Stasis . | . . . . . Rewire . | . . . . . Trap . | . . . . . Miscellaneous . | . . . . . Route ------- -11/Scrapyard -10/Materials (discovered 2 exits: *Min x2) -10/Mines (discovered 3 exits: *Mat x2 / *Sub) -10/Subcaves -9/Scraptown (discovered 2 exits: *Fac x2) History --------- Turn | Location | Event 14 | -11/Scrapyard | Discovered new exit (range 15) 161 | -11/Scrapyard | Entered Materials 225 | -10/Materials | Identified exit to Mines 314 | -10/Materials | Build established: Mutant 483 | -10/Materials | Entered Mines 490 | -10/Mines | Received a Rocket Launcher from a helpful Derelict 714 | -10/Mines | Learned 2 Materials zone layouts 732 | -10/Mines | Discovered new exit (range 9) 807 | -10/Mines | Found DCF Scrap (11 items) 874 | -10/Mines | Identified exit to Materials 1135 | -10/Mines | Discovered exit to Materials (range 12) 1150 | -10/Mines | Met a Derelict shopkeep closing up shop 1263 | -10/Mines | Learned Materials stockpile data 1626 | -10/Mines | Core integrity fell below 50% 1979 | -10/Mines | Discovered new exit (range 6) 1986 | -10/Mines | Identified exit to Subcaves 1987 | -10/Mines | Entered Subcaves 1988 | -10/Subcaves | Approached by a straggling Scientist 2035 | -10/Subcaves | Disturbed a concealed Subdweller 2039 | -10/Subcaves | Core integrity fell below 20% 2062 | -10/Subcaves | Build established: Scavenger-Mutant 2134 | -10/Subcaves | Shifting Twisted Machinery released Battle Cannon 2164 | -10/Subcaves | Scientist uncovered a shortcut to Scraptown 2181 | -10/Subcaves | Entered Scraptown 2357 | -9/Scraptown | Heard Great Nut preacher, LISTEN AND RECITE! 2373 | -9/Scraptown | Build established: Mutant 2559 | -9/Scraptown | Visited UFD Registry 2559 | -9/Scraptown | Registered with UFD as "Technoblaster" 2569 | -9/Scraptown | Visited SPCMW 2610 | -9/Scraptown | Visited CR-KLE's Repair Center 2618 | -9/Scraptown | CR-KLE repaired 5 parts 2660 | -9/Scraptown | Visited Assassins FH 3083 | -9/Scraptown | Discovered new exit (range 5) 3104 | -9/Scraptown | Identified exit to Factory 3167 | -9/Scraptown | Guru changed UFD alias to "Lasertail" 3220 | -9/Scraptown | Scanned Subdweller tech in exchange for log data 3227 | -9/Scraptown | Learned location of Testing (-2) 3278 | -9/Scraptown | Visited Shadow of the Wyrm 3299 | -9/Scraptown | Visited Spacefarers 3493 | -9/Scraptown | Visited Cyclists 3522 | -9/Scraptown | Entered Cyclist Reading Room 3525 | -9/Scraptown | Learned location of Exiles (-9) 3525 | -9/Scraptown | Learned location of Zion (-7) 3573 | -9/Scraptown | Visited Fellowship of the Rings 4025 | -9/Scraptown | Visited Cartography Club 4130 | -9/Scraptown | Visited Scrapoid Pod Storage 4169 | -9/Scraptown | Visited Curators Association 4220 | -9/Scraptown | Visited DA-N13 Charitable Foundation 4239 | -9/Scraptown | Found DCF Scrap (29 items) 4565 | -9/Scraptown | Visited Derelict Rescue Squad 4578 | -9/Scraptown | Found DRS Beacon 4612 | -9/Scraptown | Visited Research Penetration Think Tank 4681 | -9/Scraptown | Visited Observation Area 4755 | -9/Scraptown | Visited Chapter 10 4826 | -9/Scraptown | Visited Scrap Suit Storage 4854 | -9/Scraptown | Found Scrap Suit 4893 | -9/Scraptown | Visited Botcube Research 4908 | -9/Scraptown | Found Lrg. Botcube 5096 | -9/Scraptown | Discovered exit to Factory (range 5) 5275 | -9/Scraptown | Met Optimus 5275 | -9/Scraptown | Accepted into 0bPrime 5507 | -9/Scraptown | Civil war broke out across Scraptown 5543 | -9/Scraptown | Destroyed by SJ-DYB(j) with Overtuned Pulse Rifle Last Messages --------------- 05524_ Dropped Lrg. Botcube. 05526_ BU-OV6(r) follow-up attacks with Ripteeth. 05527_ Optimus Imp. VSS Leg ripped off. 05527_ BU-OV6(r) follow-up attacks with Ripteeth. 05527_ Slug penetrates SW-XFM(r). 05527_ SW-XFM(r) destroyed. 05527_ GC-PJ9(x) sneak attacks. 05527_ 20-6O8(c) suffers critical hit (Impale). 05527_ 20-6O8(c) destroyed. 05529_ BU-OV6(r) follow-up attacks with Ripteeth. 05530_ Slug penetrates BU-OV6(r). 05530_ BU-OV6(r) destroyed. 05532_ Slug penetrates GC-PJ9(x). 05532_ GC-PJ9(x) destroyed. 05532_ Slug penetrates Wall. 05532_ Machine disabled. 05534_ JG-L04(c) destroyed. 05537_ CU-RZH(c) destroyed. 05541_ Machine disabled. 05542_ Slug penetrates 0U-VKJ(g). Map ----- +----------------------------------------------------+ | ?????????????????????????????????????????????????? | | ?????????????????????????????????????????????????? | | ?????????????????????????????????????????????????? | | ?????????????????????????????????????????????????? | | ?????????????????????????????????????????????????? | | ?????????????????????????????????????????????????? | | ?????????????????????????????????????????????????? | | ?????????????????????????????????????????????????? | | ?????????????????????????????????????????????????? | | ?????????????????????????????????????????????????? | | ???????????????????????##???????#####????????????? | | ??????????????????????? ???????#"""#????????????? | | ?###################??##;##?????#" "#????????????? | | #"""##"""##""|##"""#??#; ####??" < #????????????? | | #"" ##"" ##""|##!!"####!! #"##"*[[ ##???????????? | | #"" ![%=![%![ =%%! #???????????? | | # [%!=!%==* == #???????????? | | #######################*&!%###########???????????? | | ??????????????????????#;%p##?????????????????????? | | ???????????????????????#!p#??????????????????????? | | ??????????????#######??#pj############???????????? | | ??????????????#"! "??#x&#""""""""""????????????? | | ??????????????#" "#??#[!# " ##????????????? | | ??????????????## X####! #"" #????????????? | | ??????????????#" *! "# #"" #????????????? | | ?#######"###??#"! !"# @#"""" #????????????? | | ?#"""" ""??#" !"# #"" " #????????????? | | ?#"""!= ""#?#"! !"# #"""" #????????????? | | ?#"" | " #?#"! "# #"" #????????????? | | ?#""" "#?## ## #" ###???????????? | | ?# "#?# # # #???????????? | | ?##### ######?#### #####!!## #########???????????? | | ###### ########### ####=/%## ###############?????? | | """""" """"""""""" """" %3 " "## """"""""""#?????? | | ==/% "## " "#?????? | | = ! "## """""" "#?????? | | "## "????" "#?????? | | "## "????" "#?????? | | "????" "#?????? | | """"""""""""""""""""""""jg "## """""" "#?????? | | """""""""""""""""""""""" "## "#?????? | | #### ################"" "## """""""""#?????? | | ##????????#"" "##############?????? | | X"#????????#"" "## " """"#?????????? | | "" "" ##????????#"" "## ""#?????????? | | "" "" X"#??????###"" "## "#?????????? | | " " ######### #"" "## ""#?????????? | | "" ""#?????????? | | "" "## ""#?????????? | | " " ######### #"" "## """"""#?????????? | +----------------------------------------------------+ Best States ------------- Heat Dissipation 25 Energy Generation 14 Energy Capacity 265 Matter Stores 300 Matter Capacity 300 Sight Range 16 Terrain Scan Density 10 Armor Coverage 150 Evasion (%) 55 Targeting Accuracy 8 Recoil Reduction 2 Item Schematics ----------------- None Robot Schematics ------------------ None Fabricated ------------ Nothing Repaired ---------- Nothing Alien Tech Used ----------------- None Achievements -------------- None Challenges ------------ None Game ------ Seed ProjectionComponentTube Manual? 0 Play Time 01:15:32 Cumulative 24.4 hours Start 2025.05.11 @ 18:09:25 End 2025.05.11 @ 20:16:10 Sessions 3 Manual Loads 0 Difficulty Rogue Special Mode None Game No. 36 Rogue 36 Adventurer 0 Explorer 0 Win Type - Total 0 Types 0/0/0/0/0/0/0/0/0/0 Lore% 20 Gallery% 25 Achievement% 20 Wizard Run 0 Options --------- Layout 0 ASCII 0 Keyboard 1 Movement Numpad Keybinds 0 Fullscreen 2 Font 24/Smallcaps Map View 76x50 Zoom Use 0% Tactical HUD 1 Map Filters NONE Filters NONE Steam 1 RUN: 55fb4d58-baa6-4bde-83c5-50e6c99bc915